{"text_format":"3","workbook":"xlsx","n_sheets":3,"sheets":["Sheet1","Sheet2","Sheet3"],"not_rendered":{"defined_names":1},"read":"whole","date_system":"1900"}

{"sheet":"Sheet1","index":0,"n_rows":84,"n_cols":6,"rows_kept":84,"merged":[[1,0,1,5],[3,0,4,0],[3,1,4,1],[3,2,4,2],[3,3,4,3],[3,4,3,5],[5,1,8,1],[9,1,14,1],[15,1,18,1],[19,1,22,1],[23,1,24,1],[25,1,30,1],[32,1,38,1],[39,1,45,1],[46,1,53,1],[54,1,57,1],[58,1,61,1],[62,1,69,1],[70,1,77,1],[78,1,81,1],[83,0,83,2]]}
[]
["甘肃省农村合作金融机构2019年员工招聘计划表"]
[{"$nulls":5},"单位：人"]
["序号","地市","机构名称","招聘计划","其  中"]
[{"$nulls":4},"管培生","业务岗"]
[1,"兰州","兰州农村商业银行",{"$f":"SUM(E6:F6)","v":50},30,20]
[2,null,"甘肃榆中农村合作银行",{"$f":"SUM(E7:F7)","v":2},null,2]
[3,null,"皋兰县农村信用合作联社",3,null,3]
[4,null,"永登县农村信用合作联社",2,null,2]
[5,"天水","天水秦州农村合作银行",20,null,20]
[6,null,"天水麦积农村合作银行",12,null,12]
[7,null,"武山县农村信用合作联社",3,null,3]
[8,null,"清水县农村信用合作联社",3,null,3]
[9,null,"张家川县农村信用合作联社",5,null,5]
[10,null,"甘肃秦安农村商业银行",15,null,15]
[11,"定西","定西农村商业银行",2,null,2]
[12,null,"甘肃临洮农村商业银行",12,null,12]
[13,null,"漳县农村信用合作联社",3,null,3]
[14,null,"甘肃岷县农村商业银行",10,null,10]
[15,"武威","武威农村商业银行",2,null,2]
[16,null,"甘肃古浪农村商业银行",5,null,5]
[17,null,"甘肃天祝农村商业银行",10,null,10]
[18,null,"甘肃民勤农村商业银行",10,null,10]
[19,"金昌","金昌农村商业银行",10,null,10]
[20,null,"甘肃永昌农村商业银行",9,null,9]
[21,"张掖","张掖农村商业银行",3,null,3]
[22,null,"甘肃山丹农村商业银行",5,null,5]
[23,null,"甘肃临泽农村商业银行",13,null,13]
[24,null,"甘肃高台农村商业银行",5,null,5]
[25,null,"肃南县农村信用合作联社",1,null,1]
[26,null,"甘肃民乐农村商业银行",8,null,8]
[27,"嘉峪关","嘉峪关农村商业银行",8,null,8]
[28,"酒泉","酒泉农村商业银行",10,null,10]
[29,null,"甘肃玉门农村商业银行",7,null,7]
[30,null,"金塔县农村信用合作联社",5,null,5]
[31,null,"甘肃瓜州农村商业银行",10,null,10]
[32,null,"甘肃敦煌农村商业银行",7,null,7]
[33,null,"肃北县农村信用合作联社",5,null,5]
[34,null,"阿克塞县农村信用合作联社",2,null,2]
[35,"平凉","平凉农村商业银行",7,null,7]
[36,null,"甘肃静宁农村商业银行",10,null,10]
[37,null,"甘肃华亭农村商业银行",15,null,15]
[38,null,"甘肃崇信农村商业银行",8,null,8]
[39,null,"甘肃泾川农村商业银行",12,null,12]
[40,null,"甘肃灵台农村商业银行",15,null,15]
[41,null,"甘肃庄浪农村商业银行",15,null,15]
[42,"庆阳","庆阳农村商业银行",5,null,5]
[43,null,"庆城县农村信用合作联社",2,null,2]
[44,null,"甘肃宁县农村合作银行",3,null,3]
[45,null,"正宁县农村信用合作联社",2,null,2]
[46,null,"合水县农村信用合作联社",3,null,3]
[47,null,"镇原县农村信用合作联社",3,null,3]
[48,null,"华池县农村信用合作联社",3,null,3]
[49,null,"环县农村信用合作联社",10,null,10]
[50,"陇南","陇南武都农村合作银行",3,null,3]
[51,null,"甘肃西和农村商业银行",10,null,10]
[52,null,"甘肃礼县农村商业银行",13,null,13]
[53,null,"徽县农村信用合作联社",3,null,3]
[54,"陇南","甘肃两当农村商业银行",5,null,5]
[55,null,"成县农村信用合作联社",3,null,3]
[56,null,"文县农村信用合作联社",3,null,3]
[57,null,"甘肃康县农村商业银行",5,null,5]
[58,"临夏","临夏农村商业银行",12,null,12]
[59,null,"和政县农村信用合作联社",3,null,3]
[60,null,"广河县农村信用合作联社",3,null,3]
[61,null,"东乡县农村信用合作联社",10,null,10]
[62,null,"康乐县农村信用合作联社",3,null,3]
[63,null,"永靖县农村信用合作联社",2,null,2]
[64,null,"积石山县农村信用合作联社",3,null,3]
[65,null,"临夏县农村信用合作联社",2,null,2]
[66,"甘南","合作市农村信用合作联社",{"$f":"SUM(E71:F71)","v":3},null,3]
[67,null,"夏河县农村信用合作联社",10,null,10]
[68,null,"碌曲县农村信用合作联社",3,null,3]
[69,null,"玛曲县农村信用合作联社",2,null,2]
[70,null,"迭部县农村信用合作联社",2,null,2]
[71,null,"临潭县农村信用合作联社",3,null,3]
[72,null,"卓尼县农村信用合作联社",3,null,3]
[73,null,"舟曲县农村信用合作联社",3,null,3]
[74,"白银","平川区农村信用合作联社",5,null,5]
[75,null,"景泰县农村信用合作联社",3,null,3]
[76,null,"甘肃靖远农村商业银行",8,null,8]
[77,null,"甘肃会宁农村商业银行",12,null,12]
[78,"其他","秦安众信村镇银行",10,null,10]
["合计",null,null,{"$f":"SUM(D6:D83)","v":540},{"$f":"SUM(E6:E83)","v":30},510]

{"sheet":"Sheet2","index":1,"n_rows":0,"n_cols":0,"rows_kept":0}

{"sheet":"Sheet3","index":2,"n_rows":0,"n_cols":0,"rows_kept":0}